[Event "Swiss Championship U14 2022"]
[Site "Biel"]
[Date "2022.07.21"]
[Round "7.1"]
[White "Gut, Raphael"]
[Black "Mattenberger, Matthias"]
[Result "0-1"]
[ECO "E36"]
[WhiteElo "1898"]
[BlackElo "2005"]
[Annotator "TA"]
[PlyCount "62"]
[EventDate "2022.07.18"]
[EventType "swiss"]
[EventCountry "SUI"]
[SourceTitle "playchess.com"]
[Source "ChessBase"]
[SourceQuality "1"]
[TimeControl "5400+30"]

{[%evp 12,62,2,2,0,0,7,0,7,-41,-41,-135,-142,-125,-63,-60,-49,-71,-54,-177,-170,-169,-179,-178,-198,-373,-364,-358,-337,-789,-788,-974,-975,-978,-953,-928,-965,-928,-927,-1033,-1015,-1159,-1143,-1285,-1282,-1368,-1256,-1267,-1236,-1260,-1186,-6250,-797]} 1. d4 {[%emt 0:00:02]} Nf6 {[%emt 0:00:07]} 2. c4 {[%emt 0:00:05]} e6 {[%emt 0:00:07]} 3. Nc3 {[%emt 0:01:01]} Bb4 {[%emt 0:00:06]} 4. Qc2 {[%emt 0:05:28]} d5 {[%emt 0:00:55]} 5. a3 {[%emt 0:00:07]} Bxc3+ {[%emt 0:00:05]} 6. Qxc3 {[%emt 0:00:03]} O-O {[%emt 0:00:05]} 7. Bg5 {[%emt 0:00:16]} c5 {[%emt 0:00:04] E36: Nimzo-Indian: Classical: 4...d5 5 a3.} 8. dxc5 {[%emt 0:00:05] White wants to play Bxf6.} d4 {[%emt 0:00:03]} 9. Qf3 {[%emt 0:00:04] is recently more successful than 9.Qg3.} Nbd7 {[%emt 0:00:05] [#] The position is equal.} 10. Rd1 $146 {[%emt 0:03:31]} (10. Bxf6 $11 {is more appropriate.} Nxf6 11. Qf4) ({Predecessor:} 10. e3 h6 11. Bxf6 Nxf6 12. O-O-O e5 13. Ne2 d3 14. Nc3 Bg4 15. Rxd3 Qa5 16. Qxb7 {0-1 (32) Bok,B (2616)-So,W (2773) Chess.com INT 2022}) 10... e5 {[%emt 0:01:09]} 11. e4 {[%emt 0:01:23]} (11. b4 $15) 11... Nxc5 $17 {[%emt 0:00:32]} 12. Bxf6 {[%emt 0:02:00]} gxf6 {[%emt 0:00:40]} (12... Qxf6 $17 13. Qxf6 gxf6) 13. b4 $15 {[%emt 0:03:52]} Ne6 {[%emt 0:27:47]} 14. Bd3 {[%emt 0:06:38]} a5 {[%emt 0:02:45]} 15. Bc2 {[%emt 0:05:35] This move loses the game for White.} (15. Ne2 $15) 15... axb4 {[%emt 0:00:37]} 16. axb4 {[%emt 0:00:17]} Qe7 {[%emt 0:01:08]} 17. Rb1 {[%emt 0:01:16] [#]} Rd8 $1 {[%emt 0:04:01][%cal Od4d3] aiming for ...d3!} 18. Ne2 $2 {[%emt 0:03:16] [#]} (18. Bd3 {is a better defense.}) 18... d3 $1 $19 {[%emt 0:04:31]} 19. Bxd3 {[%emt 0:00:09]} Ra3 {[%emt 0:00:06]} 20. Nc1 {[%emt 0:00:03]} (20. Qg3+ Kh8 21. O-O Rdxd3 22. Qg4) 20... Nf4 {[%emt 0:00:25] Black is clearly winning.} 21. O-O {[%emt 0:01:55]} Rdxd3 {[%emt 0:00:16]} 22. Nxd3 {[%emt 0:01:47]} Rxd3 {[%emt 0:00:07]} 23. Qxd3 {[%emt 0:00:56]} Nxd3 {[%emt 0:00:05][%cal Bf4d3,Bd3b4,Bb4c6,Bc6d4][%mdl 32]} 24. Rfd1 {[%emt 0:00:03]} Nxb4 {[%emt 0:00:49]} 25. h3 {[%emt 0:00:29]} Nc6 {[%emt 0:00:14]} 26. Rd3 {[%emt 0:00:35]} Nd4 {[%emt 0:00:14]} 27. Ra1 {[%emt 0:00:19]} Qc7 {[%emt 0:00:23]} 28. Ra4 {[%emt 0:00:25]} Kf8 {[%emt 0:00:19] Hoping for ...b5.} 29. Rda3 {[%emt 0:00:08]} Ke7 {[%emt 0:00:19]} 30. f3 {[%emt 0:00:42]} Qb6 {[%emt 0:00:24] ( -> ...Nxf3+)} 31. Kf1 {[%emt 0:00:40]} Qb1+ {[%emt 0:00:45] Weighted Error Value: White=0.74/Black=0.08 (flawless)} 0-1

[Event "Swiss Championship U14 2022"]
[Site "Biel"]
[Date "2022.07.21"]
[Round "7.2"]
[White "Rappazzo, Johannes"]
[Black "Arsenie, Cristian Marc"]
[Result "1-0"]
[ECO "B30"]
[WhiteElo "1761"]
[BlackElo "2001"]
[Annotator "TA"]
[PlyCount "43"]
[EventDate "2022.07.18"]
[EventType "swiss"]
[EventCountry "SUI"]
[SourceTitle "playchess.com"]
[Source "ChessBase"]
[SourceQuality "1"]
[TimeControl "5400+30"]

{[%evp 18,43,26,18,28,21,10,29,219,226,379,299,295,314,410,408,560,566,710,687,642,629,29992,29993,29993,29994,29994,29993]} 1. e4 {[%emt 0:00:02]} c5 {[%emt 0:00:01]} 2. Nf3 {[%emt 0:00:05][%cal Bg1f3,Bf3d2,Bd2f1,Bf1e3][%mdl 32]} Nc6 {[%emt 0:00:01]} 3. Nc3 {[%emt 0:00:04]} e5 {[%emt 0:00:06]} 4. Bc4 {[%emt 0:00:04]} Be7 {[%emt 0:00:07]} 5. d3 {[%emt 0:00:13]} Nf6 {[%emt 0:00:09]} 6. Nd2 {[%emt 0:00:31]} d6 {[%emt 0:00:11]} 7. Nf1 {[%emt 0:00:06]} Bg4 {[%emt 0:00:14]} 8. f3 {[%emt 0:00:02]} Be6 {[%emt 0:00:05]} 9. Ne3 {[%emt 0:00:05]} O-O {[%emt 0:00:06]} 10. O-O {[%emt 0:00:05]} Nh5 {[%emt 0:00:45] B30: Sicilian: 2...Nc6 3 Bb5, lines without ...g6.} 11. g3 {[%emt 0:00:10][%cal Bg2g3,Bg3f4][%mdl 32] has lost popularity (11.Ncd5).} Bg5 {[%emt 0:03:00]} 12. Ncd5 {[%emt 0:01:28] [#] Threatens to win with f4.} Bh3 $146 {[%emt 0:11:48] [#]} (12... Bxe3+ $11 13. Bxe3 Ne7) ({Predecessor:} 12... Bxe3+ 13. Bxe3 Ne7 14. Bg5 Bxd5 15. Bxd5 h6 16. Bxe7 Qxe7 17. f4 Nf6 18. Bb3 b5 {½-½ (57) Bacrot,E (2725)-Yu,Y (2751) Riadh 2017}) 13. f4 $18 {[%emt 0:04:29]} Bxf1 $2 {[%emt 0:09:51]} (13... Nxf4 14. gxf4 Bxf1 15. fxg5 (15. Qxf1 exf4 16. Nxf4 Ne5 $16) 15... Bh3) 14. Qxh5 {[%emt 0:00:17]} (14. Nxf1 Nxf4 15. gxf4 exf4 $16) 14... exf4 {[%emt 0:00:05]} 15. gxf4 {[%emt 0:00:11]} (15. Nxf1 g6 16. Qh3 fxg3 17. Nxg3 (17. Qxg3 Bxc1 18. Rxc1 Nd4 $16) 17... Kh8 18. Bxg5 Qxg5 $18) 15... Nd4 {[%emt 0:00:57]} 16. Kxf1 {[%emt 0:05:16] The board is on fire.} ({Not} 16. fxg5 Be2 17. Ng4 Kh8 $18) 16... Bf6 {[%emt 0:03:37]} 17. c3 {[%emt 0:02:55]} Nc6 {[%emt 0:03:02]} 18. Ng4 {[%emt 0:02:31]} Be7 {[%emt 0:03:32]} 19. f5 {[%emt 0:09:35]} g6 {[%emt 0:02:13]} 20. fxg6 {[%emt 0:01:00] White mates.} hxg6 {[%emt 0:00:45]} 21. Nxe7+ {[%emt 0:00:40]} Nxe7 {[%emt 0:00:11]} 22. Qh6 {[%emt 0:00:23] White took control after the opening.  Weighted Error Value: White=0.07 (flawless) /Black=1.18} 1-0

[Event "Swiss Championship U14 2022"]
[Site "Biel"]
[Date "2022.07.21"]
[Round "7.3"]
[White "Malli, Suvirr"]
[Black "Gut, Lionel"]
[Result "1/2-1/2"]
[ECO "D00"]
[WhiteElo "1957"]
[BlackElo "1957"]
[Annotator "TA"]
[PlyCount "115"]
[EventDate "2022.07.18"]
[EventType "swiss"]
[EventCountry "SUI"]
[SourceTitle "playchess.com"]
[Source "ChessBase"]
[SourceQuality "1"]
[TimeControl "5400+30"]

{[%evp 9,115,2,0,8,20,2,1,2,0,0,0,-16,-12,-20,-25,-25,-9,-119,-15,-2,-2,-11,-11,-118,-20,-23,-18,-25,0,0,0,-19,37,7,17,0,21,23,13,22,30,33,63,16,81,77,76,63,63,63,63,63,83,48,63,63,68,0,0,0,6,0,0,0,0,0,0,0,0,0,0,0,0,0,0,0,0,0,0,0,0,0,8,8,8,8,8,8,8,8,8,8,8,8,8,8,8,0,8,0,0,0,0,0,0,0,0,0]} 1. d4 {[%emt 0:00:03]} Nf6 {[%emt 0:00:05]} 2. Nc3 {[%emt 0:00:05]} d5 {[%emt 0:00:02]} 3. Bf4 {[%emt 0:00:08]} a6 {[%emt 0:00:03]} 4. e3 {[%emt 0:00:38]} c5 {[%emt 0:00:20]} 5. dxc5 {[%emt 0:00:19]} Qa5 {[%emt 0:00:07]} 6. Nf3 {[%emt 0:03:47] D00: 1 d4 d5: Unusual lines.} Qxc5 {[%emt 0:00:59]} 7. Qd2 {[%emt 0:01:41] [#]} e6 $146 {[%emt 0:05:07]} ({Predecessor:} 7... Nc6 8. O-O-O Bg4 9. Be2 e6 10. Kb1 Rc8 11. Ne5 Bxe2 12. Qxe2 Be7 13. g4 O-O {½-½ (34) Giri,A (2764)-Navara,D (2719) chess24.com INT 2020}) 8. Bd3 {[%emt 0:05:42]} Be7 {[%emt 0:04:35]} 9. O-O {[%emt 0:09:37]} O-O {[%emt 0:01:44]} 10. Qe2 {[%emt 0:03:00]} Nc6 {[%emt 0:16:56]} 11. Rad1 {[%emt 0:05:03]} b5 {[%emt 0:01:20]} 12. Ne5 {[%emt 0:04:23]} Bb7 {[%emt 0:04:20]} 13. g4 {[%emt 0:07:26]} (13. a3 $11) 13... d4 {[%emt 0:03:10]} ({Better is} 13... Nxe5 $17 14. Bxe5 Qc6) 14. Ne4 $11 {[%emt 0:02:54]} Qd5 {[%emt 0:06:36]} 15. Nxf6+ {[%emt 0:02:07]} Bxf6 {[%emt 0:00:14]} 16. e4 {[%emt 0:02:04] [#]} (16. c4 $11 bxc4 17. Bxc4) 16... Qd8 {[%emt 0:00:30]} (16... Qxa2 $2 17. Nxc6 e5 18. Nb4 $18 (18. Bxe5 Bxc6 19. Bxf6 gxf6 $14)) ({Black should play} 16... Qd6 $1 $17 17. Ng6 e5 18. Nxf8 exf4 19. Nxh7 Bh4) 17. Nxc6 {[%emt 0:01:06]} Bxc6 {[%emt 0:00:02]} 18. e5 {[%emt 0:03:44]} Bg5 {[%emt 0:04:53]} (18... Qd5 $5 19. f3 Bd8 $11) 19. Bxg5 {[%emt 0:00:26]} Qxg5 {[%emt 0:00:01]} 20. Be4 {[%emt 0:00:12]} Rac8 {[%emt 0:00:58]} (20... Bxe4 $11 21. Qxe4 Rad8) 21. Rxd4 {[%emt 0:03:46]} Bxe4 {[%emt 0:01:29]} 22. Qxe4 {[%emt 0:01:15]} Rc5 {[%emt 0:00:47]} 23. Re1 {[%emt 0:02:05]} h5 {[%emt 0:00:46]} 24. h3 {[%emt 0:03:28]} Rfc8 {[%emt 0:00:27]} 25. c3 {[%emt 0:00:52]} g6 {[%emt 0:03:39]} 26. Kg2 {[%emt 0:08:04] White is more active.} (26. Qe3 $14 Qxe3 27. Rxe3) 26... hxg4 {[%emt 0:06:18]} (26... Rc4 $1 $11 {keeps the balance.}) 27. hxg4 $16 {[%emt 0:00:40]} Kg7 {[%emt 0:00:13]} 28. Qe3 {[%emt 0:00:33]} (28. Kg3 {with more complications.} Rh8 29. Qf4 Qxf4+ 30. Kxf4 Rh3 31. Re2) 28... Qxe3 {[%emt 0:01:49]} 29. Rxe3 $14 {[%emt 0:00:06][%mdl 4096] Endgame KRR-KRR} g5 {[%emt 0:02:54]} 30. Kg3 {[%emt 0:03:28]} Rc4 {[%emt 0:03:12]} 31. Ree4 {[%emt 0:01:27]} R4c5 {[%emt 0:01:33]} 32. Rd6 {[%emt 0:02:07]} a5 {[%emt 0:00:41]} 33. f4 {[%emt 0:04:31]} (33. a3 $14) 33... gxf4+ $11 {[%emt 0:00:16] The position is equal.} 34. Kxf4 {[%emt 0:00:07]} Rh8 {[%emt 0:04:02]} 35. Ra6 {[%emt 0:01:43]} Rh2 {[%emt 0:02:11]} 36. b4 {[%emt 0:01:30]} axb4 {[%emt 0:01:36]} 37. cxb4 {[%emt 0:00:07]} Rd5 {[%emt 0:01:15]} 38. Rd6 {[%emt 0:02:28] [#] Threatens to win with Rxd5.} Rxa2 {[%emt 0:02:15]} 39. Rxd5 {[%emt 0:00:09]} exd5 {[%emt 0:00:02] KR-KR} 40. Rd4 {[%emt 0:00:13]} Rc2 {[%emt 0:00:31]} 41. Rxd5 {[%emt 0:00:29]} Rc4+ {[%emt 0:00:04]} 42. Kf5 {[%emt 0:00:53]} Rxb4 {[%emt 0:00:20]} 43. Rd7 {[%emt 0:00:08] e6 is the strong threat.} Rb1 {[%emt 0:12:32]} 44. e6 {[%emt 0:01:26]} Rf1+ {[%emt 0:00:04]} 45. Kg5 {[%emt 0:00:10]} Kf8 {[%emt 0:00:19]} 46. exf7 {[%emt 0:00:34]} Rxf7 {[%emt 0:00:08]} (46... Kg7 {is interesting.} 47. Rd5 Rxf7 48. Rxb5 Rd7) 47. Rd8+ {[%emt 0:00:04]} Kg7 {[%emt 0:00:05]} 48. Rb8 {[%emt 0:00:08]} Rd7 {[%emt 0:00:08]} 49. Rxb5 {[%emt 0:00:11]} Rc7 {[%emt 0:00:19]} 50. Kh5 $1 {[%emt 0:00:41]} Ra7 {[%emt 0:00:12]} 51. g5 {[%emt 0:01:36]} Rc7 {[%emt 0:00:04]} 52. Rb6 {[%emt 0:00:12]} Ra7 {[%emt 0:00:15]} 53. Rb5 {[%emt 0:00:53]} Rc7 {[%emt 0:00:06]} 54. g6 {[%emt 0:00:05]} Ra7 {[%emt 0:00:07]} 55. Kg5 {[%emt 0:00:15]} Rc7 {[%emt 0:00:06]} 56. Rb6 {[%emt 0:00:35]} Rc5+ {[%emt 0:00:05]} 57. Kf4 {[%emt 0:00:04]} Ra5 {[%emt 0:00:09]} 58. Ke4 {[%emt 0:01:12] Weighted Error Value: White=0.15 (very precise) /Black=0.13 (very precise)} 1/2-1/2

[Event "Swiss Championship U14 2022"]
[Site "Biel"]
[Date "2022.07.21"]
[Round "7.4"]
[White "Scherler, Julius"]
[Black "Breyer, Philippe"]
[Result "1/2-1/2"]
[ECO "B53"]
[WhiteElo "1971"]
[BlackElo "1743"]
[Annotator "TA"]
[PlyCount "60"]
[EventDate "2022.07.18"]
[EventType "swiss"]
[EventCountry "SUI"]
[SourceTitle "playchess.com"]
[Source "ChessBase"]
[SourceQuality "1"]
[TimeControl "5400+30"]

{[%evp 9,60,9,16,18,16,9,8,0,0,0,32,0,4,0,0,0,0,0,0,-15,32,-16,-5,-29,24,-38,-30,-35,-18,-50,-19,-129,-113,-162,-166,-288,-6,-6,-6,-7,-6,-6,0,0,0,0,0,0,0,0,0,0,0]} 1. e4 {[%emt 0:00:29]} c5 {[%emt 0:00:01]} 2. Nf3 {[%emt 0:00:31]} d6 {[%emt 0:01:10]} 3. d4 {[%emt 0:00:28]} cxd4 {[%emt 0:00:23]} 4. Qxd4 {[%emt 0:00:30]} Nf6 {[%emt 0:00:43]} 5. Be2 {[%emt 0:00:24]} Nc6 {[%emt 0:00:00]} 6. Qe3 {[%emt 0:00:47] B53: Sicilian: 2...d6: Lines with Qxd4.} g6 {[%emt 0:00:26]} 7. O-O {[%emt 0:00:17]} Bg7 {[%emt 0:00:05]} 8. h3 {[%emt 0:00:28]} O-O {[%emt 0:01:44]} 9. Rd1 {[%emt 0:00:33]} Be6 {[%emt 0:00:40]} 10. Nc3 {[%emt 0:00:20]} Rc8 {[%emt 0:00:29]} 11. a3 {[%emt 0:00:36]} a6 {[%emt 0:00:11]} 12. Nd5 {[%emt 0:05:08]} Bxd5 {[%emt 0:00:11]} 13. exd5 {[%emt 0:00:27]} Na5 {[%emt 0:07:43]} ({Resist} 13... Ne5 14. Nxe5 dxe5 15. c4 $16) 14. Rb1 {[%emt 0:13:46] [#]} Nc4 $146 {[%emt 0:05:39]} (14... Rxc2 $11 15. b4 Nc4) ({Predecessor:} 14... Qc7 15. c3 b5 16. a4 Nc4 17. Qd3 bxa4 18. Ra1 Nb6 19. Qxa6 Nfxd5 20. Nd4 Rfd8 {½-½ (48) Kosakowski,J (2435)-Nasuta,G (2511) Kruszwica 2022}) 15. Qb3 {[%emt 0:07:08]} (15. Qf4 $1 $14 b5 16. b3) 15... b5 $11 {[%emt 0:00:00]} 16. a4 {[%emt 0:05:36]} Qb6 {[%emt 0:04:12]} ({Black should play} 16... Na5 17. Qa2 (17. Qd3 Rc5 $11) 17... Rxc2) 17. Bxc4 {[%emt 0:04:54]} ({Better is} 17. axb5 $11 axb5 18. Nd4) 17... Rxc4 $15 {[%emt 0:00:00]} 18. Be3 {[%emt 0:00:14]} Qb7 {[%emt 0:00:00]} 19. axb5 {[%emt 0:01:50]} axb5 {[%emt 0:04:01]} 20. Ra1 {[%emt 0:04:19]} (20. Qd3 $11) 20... Nxd5 $17 {[%emt 0:07:06]} 21. Ra7 {[%emt 0:00:09]} (21. Bg5 $17) 21... Qc6 $19 {[%emt 0:00:11]} 22. Bd4 {[%emt 0:28:59]} (22. Ne1 $142) 22... e6 $2 {[%emt 0:00:24]} (22... e5 $19 23. Bc3 Nxc3 24. bxc3 Rxc3) 23. Bxg7 $11 {[%emt 0:00:00] The position is equal.} Kxg7 {[%emt 0:20:44]} 24. Nd4 $36 {[%emt 0:00:00][%mdl 2048] [#] White fights for an advantage.} Rxd4 {[%emt 0:01:30]} 25. Rxd4 {[%emt 0:04:56]} Qc5 {[%emt 0:04:46]} 26. Rxd5 {[%emt 0:00:00]} exd5 {[%emt 0:04:03]} 27. Rb7 {[%emt 0:03:00]} Re8 {[%emt 0:02:18] And now ...Re1+ would win.} 28. Qf3 {[%emt 0:00:00]} Rf8 {[%emt 0:06:31]} 29. c3 {[%emt 0:02:49]} Qc6 {[%emt 0:00:00]} 30. Re7 {[%emt 0:01:05]} b4 {[%emt 0:01:35] Weighted Error Value: White=0.26 (precise) /Black=0.27 (precise)} 1/2-1/2

[Event "Swiss Championship U14 2022"]
[Site "Biel"]
[Date "2022.07.21"]
[Round "7.5"]
[White "Breyer, Thierry"]
[Black "Stoll, Arturo"]
[Result "1-0"]
[ECO "B51"]
[WhiteElo "1683"]
[BlackElo "1434"]
[Annotator "NA RC COMBH"]
[PlyCount "102"]
[EventDate "2022.07.18"]
[EventType "swiss"]
[EventCountry "SUI"]
[SourceTitle "playchess.com"]
[Source "ChessBase"]
[SourceQuality "1"]
[TimeControl "5400+30"]

1. e4 {[%emt 0:00:02]} c5 {[%emt 0:00:09]} 2. Nf3 {[%emt 0:00:06]} Nc6 {[%emt 0:00:09]} 3. Nc3 {[%emt 0:00:06]} e5 {[%emt 0:00:07]} 4. Bb5 {[%emt 0:00:15]} d6 {[%emt 0:00:27]} 5. d3 {[%emt 0:09:00]} Be7 {[%emt 0:04:27]} 6. Nd5 {[%emt 0:06:56]} a6 {[%emt 0:02:33]} 7. Bxc6+ {[%emt 0:02:03]} bxc6 {[%emt 0:00:13]} 8. Ne3 {[%emt 0:00:15]} g6 {[%emt 0:10:36]} 9. b3 {[%emt 0:06:16]} Be6 {[%emt 0:04:43]} 10. Bb2 {[%emt 0:01:08]} Qc7 {[%emt 0:03:55]} 11. g4 {[%emt 0:10:16]} Bf6 {[%emt 0:01:42]} 12. c4 {[%emt 0:02:18]} Qd7 {[%emt 0:03:41]} 13. Rg1 {[%emt 0:00:39]} Bd8 {[%emt 0:03:39]} 14. Qe2 {[%emt 0:12:11]} Nf6 {[%emt 0:06:00]} 15. Ng5 {[%emt 0:04:50]} Ba5+ {[%emt 0:01:16]} 16. Kd1 {[%emt 0:00:46]} Bd8 {[%emt 0:03:55]} 17. Nxe6 {[%emt 0:04:47]} Qxe6 {[%emt 0:00:52]} 18. Kc2 {[%emt 0:00:40]} a5 {[%emt 0:01:58]} 19. a4 {[%emt 0:03:05]} Bc7 {[%emt 0:02:50]} 20. Rae1 {[%emt 0:02:28]} O-O-O {[%emt 0:03:25]} 21. f4 {[%emt 0:07:40]} Rd7 {[%emt 0:04:52]} 22. fxe5 {[%emt 0:09:00]} dxe5 {[%emt 0:00:08]} 23. Rd1 {[%emt 0:01:02]} Bb6 {[%emt 0:04:02]} 24. Qf3 {[%emt 0:02:13]} h5 {[%emt 0:04:25]} 25. h3 {[%emt 0:01:24]} Rb7 {[%emt 0:01:36]} 26. Rdf1 {[%emt 0:01:19]} Bd8 {[%emt 0:00:57]} 27. Bc3 {[%emt 0:00:36]} Ne8 {[%emt 0:01:21]} 28. gxh5 {[%emt 0:06:31]} Rxh5 {[%emt 0:00:24]} 29. Ng4 {[%emt 0:00:55]} f6 {[%emt 0:04:59]} 30. Qe3 {[%emt 0:00:47]} Bb6 {[%emt 0:00:58]} 31. Rf3 {[%emt 0:00:45]} Qd6 {[%emt 0:03:04]} 32. Rfg3 {[%emt 0:03:21]} g5 {[%emt 0:00:46]} 33. Qf3 {[%emt 0:00:16]} Rhh7 {[%emt 0:00:36]} 34. Rf1 {[%emt 0:00:43]} Rbf7 {[%emt 0:00:40]} 35. Qg2 {[%emt 0:01:22]} Qf8 {[%emt 0:03:13]} 36. Rgf3 {[%emt 0:00:25]} Bc7 {[%emt 0:12:08]} 37. Qd2 {[%emt 0:00:26]} Qh8 {[%emt 0:00:52]} 38. Bxe5 {[%emt 0:00:44]} Rxh3 {[%emt 0:00:17]} 39. Bxc7 {[%emt 0:00:38]} Rxc7 {[%emt 0:00:58]} 40. Rxh3 {[%emt 0:00:18]} Qxh3 {[%emt 0:00:00]} 41. Qe2 {[%emt 0:01:14]} Rf7 {[%emt 0:01:42]} 42. Rf5 {[%emt 0:00:46]} Nd6 {[%emt 0:00:32]} 43. Rxf6 {[%emt 0:00:27]} Rxf6 {[%emt 0:00:10]} 44. Nxf6 {[%emt 0:00:04]} Qh8 {[%emt 0:00:10]} 45. Qg4+ {[%emt 0:00:15]} Kb7 {[%emt 0:00:13]} 46. Qd7+ {[%emt 0:00:49]} Ka6 {[%emt 0:00:23]} 47. Qxc6+ {[%emt 0:00:19]} Ka7 {[%emt 0:00:07]} 48. Qxc5+ {[%emt 0:00:13]} Kb7 {[%emt 0:00:05]} 49. Qxd6 {[%emt 0:00:15]} Qh4 {[%emt 0:00:06]} 50. Qd7+ {[%emt 0:00:13]} Ka6 {[%emt 0:00:09]} 51. Qb5+ {[%emt 0:00:34]} Ka7 {[%emt 0:01:03]} 1-0

[Event "Swiss Championship U14 2022"]
[Site "Biel"]
[Date "2022.07.21"]
[Round "7.6"]
[White "Guyer, Marlon"]
[Black "Artan, Tamir"]
[Result "0-1"]
[ECO "C50"]
[WhiteElo "1590"]
[BlackElo "1590"]
[Annotator "NA RC COMBH"]
[PlyCount "102"]
[EventDate "2022.07.18"]
[EventType "swiss"]
[EventCountry "SUI"]
[SourceTitle "playchess.com"]
[Source "ChessBase"]
[SourceQuality "1"]
[TimeControl "5400+30"]

1. e4 {[%emt 0:00:04]} e5 {[%emt 0:00:02]} 2. Nf3 {[%emt 0:00:04]} Nc6 {[%emt 0:00:06]} 3. Bc4 {[%emt 0:00:12]} Bc5 {[%emt 0:00:05]} 4. d3 {[%emt 0:00:24]} Nf6 {[%emt 0:00:12]} 5. Nc3 {[%emt 0:00:20]} d6 {[%emt 0:00:15]} 6. Be3 {[%emt 0:00:22]} Bb4 {[%emt 0:01:23]} 7. a3 {[%emt 0:04:46]} Bxc3+ {[%emt 0:00:05]} 8. bxc3 {[%emt 0:00:22]} Be6 {[%emt 0:00:29]} 9. Bb5 {[%emt 0:15:12]} O-O {[%emt 0:00:25]} 10. O-O {[%emt 0:13:33]} Ne7 {[%emt 0:00:36]} 11. c4 {[%emt 0:04:44]} h6 {[%emt 0:03:32]} 12. c3 {[%emt 0:04:10]} Ng6 {[%emt 0:00:50]} 13. Nd2 {[%emt 0:12:52]} c6 {[%emt 0:00:22]} 14. Ba4 {[%emt 0:00:22]} Ng4 {[%emt 0:07:59]} 15. d4 {[%emt 0:05:41]} f5 {[%emt 0:14:24]} 16. d5 {[%emt 0:12:10]} cxd5 {[%emt 0:00:21]} 17. cxd5 {[%emt 0:00:31]} Bc8 {[%emt 0:02:32]} 18. exf5 {[%emt 0:01:33]} Bxf5 {[%emt 0:02:19]} 19. Bc2 {[%emt 0:04:04]} Nxe3 {[%emt 0:06:00]} 20. fxe3 {[%emt 0:00:11]} Bxc2 {[%emt 0:00:22]} 21. Rxf8+ {[%emt 0:02:58]} Kxf8 {[%emt 0:00:58]} 22. Qxc2 {[%emt 0:00:19]} Qg5 {[%emt 0:00:35]} 23. Qd3 {[%emt 0:05:30]} Nh4 {[%emt 0:08:03]} 24. g3 {[%emt 0:01:49]} Kg8 {[%emt 0:02:13]} 25. Rf1 {[%emt 0:05:37]} Rf8 {[%emt 0:03:31]} 26. Rxf8+ {[%emt 0:02:51]} Kxf8 {[%emt 0:00:07]} 27. Ne4 {[%emt 0:02:08]} Qg6 {[%emt 0:01:19]} 28. Qc4 {[%emt 0:01:04]} Kg8 {[%emt 0:01:08]} 29. Kh1 {[%emt 0:00:34]} Nf5 {[%emt 0:01:07]} 30. Qd3 {[%emt 0:00:31]} Qg4 {[%emt 0:00:59]} 31. Kg1 {[%emt 0:00:29]} Qf3 {[%emt 0:00:35]} 32. Nd2 {[%emt 0:00:23]} Qxe3+ {[%emt 0:01:18]} 33. Qxe3 {[%emt 0:00:01]} Nxe3 {[%emt 0:00:02]} 34. c4 {[%emt 0:00:31]} Kf7 {[%emt 0:00:44]} 35. Kf2 {[%emt 0:00:14]} Nc2 {[%emt 0:00:45]} 36. a4 {[%emt 0:00:10]} Na3 {[%emt 0:02:03]} 37. Ke3 {[%emt 0:00:23]} Nc2+ {[%emt 0:00:42]} 38. Kd3 {[%emt 0:00:36]} Nb4+ {[%emt 0:00:46]} 39. Kc3 {[%emt 0:01:08]} Na6 {[%emt 0:00:31]} 40. Ne4 {[%emt 0:00:50]} Ke7 {[%emt 0:00:10]} 41. Kd3 {[%emt 0:00:39]} b6 {[%emt 0:02:41]} 42. Nc3 {[%emt 0:00:31]} Nc5+ {[%emt 0:00:16]} 43. Ke3 {[%emt 0:00:09]} a6 {[%emt 0:01:22]} 44. Kf3 {[%emt 0:00:24]} Kf6 {[%emt 0:02:06]} 45. Kg4 {[%emt 0:01:00]} g6 {[%emt 0:02:04]} 46. h4 {[%emt 0:00:27]} h5+ {[%emt 0:03:19]} 47. Kf3 {[%emt 0:00:12]} Kf5 {[%emt 0:00:14]} 48. Kf2 {[%emt 0:00:53]} Ne4+ {[%emt 0:01:58]} 49. Nxe4 {[%emt 0:00:07]} Kxe4 {[%emt 0:00:09]} 50. a5 {[%emt 0:00:46]} bxa5 {[%emt 0:00:11]} 51. c5 {[%emt 0:00:10]} Kxd5 {[%emt 0:00:10]} 0-1

[Event "Swiss Championship U14 2022"]
[Site "Biel"]
[Date "2022.07.21"]
[Round "7.7"]
[White "Bruessow, Nina"]
[Black "Delangle, Alexander"]
[Result "1-0"]
[ECO "C56"]
[WhiteElo "1655"]
[BlackElo "1612"]
[Annotator "NA RC COMBH"]
[PlyCount "85"]
[EventDate "2022.07.18"]
[EventType "swiss"]
[EventCountry "SUI"]
[SourceTitle "playchess.com"]
[Source "ChessBase"]
[SourceQuality "1"]
[TimeControl "5400+30"]

1. e4 {[%emt 0:00:03]} e5 {[%emt 0:00:03]} 2. Nf3 {[%emt 0:00:08]} Nc6 {[%emt 0:00:04]} 3. d4 {[%emt 0:00:10]} exd4 {[%emt 0:00:22]} 4. Bc4 {[%emt 0:00:18]} Nf6 {[%emt 0:00:34]} 5. e5 {[%emt 0:00:13]} d5 {[%emt 0:00:16]} 6. Bb5 {[%emt 0:00:20]} Ne4 {[%emt 0:00:27]} 7. Nxd4 {[%emt 0:00:30]} Bc5 {[%emt 0:00:24]} 8. Be3 {[%emt 0:00:32]} O-O {[%emt 0:01:05]} 9. Nxc6 {[%emt 0:00:40]} bxc6 {[%emt 0:00:22]} 10. Bxc5 {[%emt 0:00:14]} Nxc5 {[%emt 0:00:14]} 11. Bxc6 {[%emt 0:00:33]} Rb8 {[%emt 0:00:04]} 12. Qxd5 {[%emt 0:00:24]} Qe7 {[%emt 0:00:28]} 13. O-O {[%emt 0:00:17]} Rd8 {[%emt 0:00:49]} 14. Qc4 {[%emt 0:05:14]} Ba6 {[%emt 0:02:21]} 15. Qc3 {[%emt 0:03:58]} Bxf1 {[%emt 0:01:32]} 16. Kxf1 {[%emt 0:00:11]} Rd1+ {[%emt 0:05:11]} 17. Ke2 {[%emt 0:00:13]} Rbd8 {[%emt 0:01:06]} 18. b4 {[%emt 0:05:20]} Ne6 {[%emt 0:02:25]} 19. g3 {[%emt 0:04:56]} Qg5 {[%emt 0:08:23]} 20. h4 {[%emt 0:05:16]} Qc1 {[%emt 0:04:21]} 21. Kf3 {[%emt 0:06:11]} R8d3+ {[%emt 0:02:02]} 22. cxd3 {[%emt 0:01:09]} Qxc3 {[%emt 0:00:11]} 23. Nxc3 {[%emt 0:00:17]} Rxa1 {[%emt 0:00:06]} 24. Ke4 {[%emt 0:01:10]} Kf8 {[%emt 0:01:50]} 25. d4 {[%emt 0:05:28]} Rf1 {[%emt 0:03:37]} 26. f3 {[%emt 0:08:00]} Ke7 {[%emt 0:05:16]} 27. Nd5+ {[%emt 0:12:14]} Kd8 {[%emt 0:00:59]} 28. Ne3 {[%emt 0:00:48]} Rxf3 29. Kxf3 {[%emt 0:01:11]} Nxd4+ {[%emt 0:06:48]} 30. Ke4 {[%emt 0:00:00]} Nxc6 {[%emt 0:00:04]} 31. b5 {[%emt 0:01:14]} Ne7 {[%emt 0:02:07]} 32. Nd5 {[%emt 0:03:26]} Nc8 {[%emt 0:02:42]} 33. h5 {[%emt 0:06:53]} h6 {[%emt 0:03:21]} 34. g4 {[%emt 0:01:37]} Kd7 {[%emt 0:01:18]} 35. Ne3 {[%emt 0:04:30]} g6 {[%emt 0:02:27]} 36. g5 {[%emt 0:05:30]} gxh5 {[%emt 0:01:51]} 37. gxh6 {[%emt 0:00:20]} Ne7 {[%emt 0:00:05]} 38. Nf5 {[%emt 0:01:23]} Ng6 {[%emt 0:00:11]} 39. h7 {[%emt 0:00:35]} f6 {[%emt 0:03:14]} 40. Nh4 {[%emt 0:04:11]} Nh8 {[%emt 0:03:27]} 41. Kf5 {[%emt 0:00:45]} fxe5 {[%emt 0:01:15]} 42. Ng6 {[%emt 0:00:21]} Nf7 {[%emt 0:00:41]} 43. Nxe5+ {[%emt 0:00:19]} 1-0